bitfinex/quotes_SOLUSD_20241218
["timestamp","ask_amount","ask_price","bid_price","bid_amount"]
[1734556650192,20.0,208.45,208.3,43.16785133]
[1734556650366,20.0,208.45,208.27,19.5002]
[1734556650562,20.0,208.47,208.27,19.5002]
[1734556650790,7.33309951,208.48,208.21,54.46245133]
[1734556650791,20.0,208.43,208.21,54.46245133]
[1734556650962,24.21039416,208.43,208.21,11.2946]
[1734556651303,20.0,208.39,208.21,54.46245133]
[1734556651479,20.0,208.39,208.23,43.16785133]
[1734556651668,20.0,208.39,208.24,43.16785133]
[1734556652198,20.0,208.37,208.21,11.2946]
[1734556652375,20.0,208.39,208.26,43.16785133]
[1734556652561,20.0,208.39,208.25,43.16785133]
[1734556653464,20.0,208.35,208.29,43.16785133]
[1734556653663,11.9973,208.38,208.29,43.16785133]
[1734556654057,11.9973,208.38,208.28,43.16785133]
[1734556654258,11.9973,208.38,208.24,43.16785133]
[1734556654887,11.9973,208.38,208.21,54.46245133]
[1734556655094,20.0,208.35,208.21,54.46245133]
[1734556655280,20.0,208.35,208.22,43.16785133]
[1734556655593,20.0,208.35,208.24,43.16785133]
[1734556656388,20.0,208.35,208.21,12.01473804]
[1734556656593,20.0,208.36,208.23,43.16785133]
[1734556656794,20.0,208.35,208.16,43.16785133]
[1734556657171,20.0,208.35,208.15,11.929]
[1734556657582,20.0,208.35,208.15,55.09685133]
[1734556657775,20.0,208.34,208.17,43.16785133]
[1734556658094,20.0,208.32,208.17,43.16785133]
[1734556658490,20.0,208.31,208.17,43.16785133]
[1734556658694,20.0,208.27,208.18,43.16785133]
[1734556658897,20.0,208.27,208.19,43.16785133]
[1734556659101,20.0,208.27,208.2,43.16785133]
[1734556659583,19.209413,208.34,208.22,43.16785133]
[1734556659777,19.209413,208.34,208.15,12.64930736]
[1734556659778,12.0001,208.34,208.24,43.16785133]
[1734556659966,12.0001,208.34,208.22,26.57049352]
[1734556660702,12.0001,208.34,208.23,26.57049352]
[1734556661181,12.0001,208.34,208.24,26.57049352]
[1734556661397,12.0001,208.34,208.23,26.57049352]
[1734556662012,12.0001,208.34,208.22,26.57049352]
[1734556662307,12.0001,208.34,208.18,26.57049352]
[1734556662512,20.0,208.29,208.15,11.929]
[1734556663013,20.0,208.29,208.13,0.602617]
[1734556663179,20.0,208.25,208.13,0.602617]
[1734556664300,24.21095145,208.25,208.13,0.602617]
[1734556664678,26.22941506,208.25,208.13,0.602617]
[1734556665087,20.0,208.24,208.13,0.602617]
[1734556665278,20.0,208.2,208.13,0.602617]
[1734556665692,12.0059,208.23,208.14,26.57049352]
[1734556666011,12.0059,208.23,208.13,0.602617]
[1734556666181,36.0178,208.23,208.13,0.602617]
[1734556666880,20.0,208.2,208.13,0.602617]
[1734556667318,20.0,208.16,208.13,1.7e-05]
[1734556669386,20.0,208.14,208.13,1.7e-05]
[1734556672324,12.0117,208.13,207.99,34.05649352]
[1734556672513,20.0,208.1,207.99,34.05649352]
[1734556672693,20.0,208.1,207.99,7.486]
[1734556673031,20.0,208.1,208.01,26.57049352]
[1734556673328,20.0,208.1,207.99,7.486]
[1734556673329,20.0,208.1,208.02,26.57049352]
[1734556673524,12.0117,208.13,208.02,26.57049352]
[1734556673707,12.0117,208.13,208.04,26.57049352]
[1734556674229,12.0117,208.13,208.03,0.12549]
[1734556674407,12.0117,208.13,208.02,26.57049352]
[1734556675127,20.0,208.1,208.02,26.57049352]
[1734556675426,20.0,208.1,208.01,26.69598352]
[1734556675932,20.0,208.1,208.01,0.12549]
[1734556676424,20.0,208.1,208.01,26.57049352]
[1734556676637,20.0,208.14,207.99,7.486]
[1734556677818,36.0282,208.17,207.99,34.05649352]
[1734556678029,60.047,208.17,207.99,7.486]
[1734556678620,60.047,208.17,207.98,11.825]
[1734556679157,20.0,208.14,207.98,11.825]
[1734556680221,20.0,208.1,207.98,11.825]
[1734556680622,20.0,208.09,207.92,8.081717]
[1734556681344,20.0,208.09,207.93,26.57049352]
[1734556681653,20.0,208.09,207.95,26.57049352]
[1734556681859,20.0,208.09,207.92,34.65221052]
[1734556682027,20.0,208.09,207.94,26.57049352]
[1734556682220,60.0585,208.13,207.99,26.57049352]
[1734556682221,2.06435995,208.11,207.99,26.57049352]
[1734556682421,9.3595,208.18,208.04,26.57049352]
[1734556682749,7.0808,208.19,208.08,26.57049352]
[1734556682950,7.33309951,208.22,208.09,26.57049352]
[1734556683261,12.0087,208.19,208.13,26.57049352]
[1734556683555,12.0087,208.19,208.09,26.57049352]
[1734556683735,12.0087,208.19,208.05,33.83699352]
[1734556683920,12.0087,208.19,208.05,7.2665]
[1734556684129,24.0142,208.21,208.09,26.57049352]
[1734556684360,26.06966932,208.21,208.08,26.57049352]
[1734556684530,12.0053,208.24,208.12,26.57049352]
[1734556684730,12.0053,208.24,208.13,26.57049352]
[1734556684945,12.0053,208.24,208.14,26.57049352]
[1734556685338,12.0053,208.24,208.13,26.57049352]
[1734556685661,12.0053,208.24,208.12,26.57049352]
[1734556685662,36.016,208.24,208.12,26.57049352]
[1734556685956,65.47497239,208.24,208.02,26.57049352]
[1734556686151,65.47497239,208.24,208.03,26.57049352]
[1734556686458,65.47497239,208.24,207.98,7.313]
[1734556686459,65.47497239,208.24,208.05,26.57049352]
[1734556686656,65.47497239,208.24,208.06,26.57049352]
[1734556686854,20.0,208.21,208.04,36.19669352]
[1734556687222,23.776884,208.2,208.04,36.19669352]
[1734556687429,20.0,208.17,208.04,9.6262]
[1734556687631,23.776884,208.12,208.02,26.57049352]
[1734556687828,23.776884,208.1,208.02,26.57049352]
[1734556688151,23.776884,208.12,208.0,0.72089195]
[1734556688359,20.0,208.21,208.09,43.24300806]
[1734556688728,12.0059,208.23,208.12,43.24300806]
[1734556688929,12.0059,208.23,208.15,43.24300806]
[1734556689124,12.0059,208.23,208.12,43.24300806]
[1734556689344,12.0059,208.23,208.11,9.7314]
[1734556689345,12.0059,208.23,208.13,43.24300806]
[1734556689552,12.0059,208.23,208.14,43.24300806]
[1734556689754,12.0059,208.23,208.15,43.24300806]
[1734556690060,12.0041,208.27,208.19,43.24300806]
[1734556690241,12.0041,208.27,208.2,43.24300806]
[1734556690445,12.0041,208.27,208.16,43.24300806]
[1734556690968,12.0041,208.27,208.18,43.24300806]
[1734556691258,12.0041,208.27,208.17,43.24300806]
[1734556691441,12.0041,208.27,208.18,43.24300806]
[1734556691628,12.0041,208.27,208.19,43.24300806]
[1734556691629,20.0,208.24,208.19,43.24300806]
[1734556692231,2.0592336,208.31,208.22,43.24300806]
[1734556692232,12.0018,208.31,208.22,43.24300806]
[1734556692426,12.0018,208.31,208.23,43.24300806]
[1734556692658,12.0018,208.31,208.21,43.24300806]
[1734556692853,12.0018,208.31,208.17,43.24300806]
[1734556693495,20.0,208.28,208.16,43.24300806]
[1734556693785,35.782884,208.23,208.15,43.24300806]
[1734556694562,35.782884,208.23,208.12,7.3793]
[1734556694563,23.776884,208.23,208.18,43.24300806]
[1734556694762,23.776884,208.23,208.17,43.24300806]
[1734556695463,23.776884,208.23,208.18,43.24300806]
[1734556695786,23.776884,208.23,208.17,43.24300806]
[1734556695956,12.0018,208.31,208.22,43.24300806]
[1734556696152,11.9995,208.35,208.2,43.24300806]
[1734556696356,10.1974,208.43,208.28,43.24300806]
[1734556696583,2.06520985,208.41,208.3,43.24300806]
[1734556696887,11.997,208.39,208.32,43.24300806]
[1734556697057,11.9949,208.43,208.33,43.24300806]
[1734556697262,14.82689584,208.43,208.34,43.24300806]
[1734556697460,34.02461884,208.43,208.33,43.24300806]
[1734556697663,11.9949,208.43,208.36,43.24300806]
[1734556697880,2.92945202,208.46,208.36,43.24300806]
[1734556698188,11.9925,208.47,208.38,43.24300806]
[1734556698389,11.9925,208.47,208.36,43.24300806]
[1734556698760,1.98651014,208.5,208.4,43.24300806]
[1734556698985,1.98651014,208.5,208.37,9.3093]
[1734556698986,1.98651014,208.5,208.38,43.24300806]
[1734556699185,5.9069,208.52,208.39,43.24300806]
[1734556699599,11.9909,208.49,208.37,52.55230806]
[1734556700091,11.9909,208.49,208.38,43.24300806]
[1734556700092,20.0,208.46,208.38,43.24300806]
[1734556700595,5.9069,208.52,208.4,43.24300806]
[1734556700894,5.9069,208.52,208.38,43.24300806]
[1734556701066,11.9898,208.51,208.37,9.3093]
[1734556701684,11.9898,208.51,208.37,52.55230806]
[1734556701896,20.0,208.48,208.37,52.55230806]
[1734556702273,20.0,208.48,208.4,43.24300806]
[1734556702500,20.0,208.51,208.43,43.24300806]
[1734556702684,11.9879,208.55,208.43,43.24300806]
[1734556702870,11.9879,208.55,208.45,43.24300806]
[1734556703267,28.3474,208.59,208.48,43.24300806]
[1734556703577,35.956,208.59,208.45,43.24300806]
[1734556703898,38.01518969,208.59,208.42,43.24300806]
[1734556704072,20.0,208.56,208.43,43.24300806]
[1734556704478,20.0,208.56,208.44,43.24300806]
[1734556704729,20.0,208.52,208.41,43.24300806]
[1734556705402,20.0,208.52,208.4,43.24300806]
[1734556705897,23.776884,208.51,208.4,43.24300806]
[1734556706196,35.9625,208.55,208.35,43.24300806]
[1734556706197,23.776884,208.43,208.35,43.24300806]
[1734556706379,23.776884,208.39,208.31,53.26410806]
[1734556706696,23.776884,208.39,208.31,10.0211]
[1734556706697,35.773784,208.39,208.31,10.0211]
[1734556707196,23.776884,208.39,208.33,43.24300806]
[1734556707418,23.776884,208.39,208.36,43.24300806]
[1734556708095,20.0,208.45,208.36,43.24300806]
[1734556708399,20.0,208.45,208.37,43.24300806]
[1734556708809,2.00976205,208.51,208.41,43.24300806]
[1734556708975,9.9458,208.57,208.43,43.24300806]
[1734556709298,11.9874,208.56,208.45,43.24300806]
[1734556709597,11.9874,208.56,208.46,43.24300806]
[1734556709774,11.9874,208.56,208.45,43.24300806]
[1734556710195,11.9874,208.56,208.46,43.24300806]
[1734556710384,11.9874,208.56,208.44,10.042]
[1734556710602,11.9874,208.56,208.44,53.28500806]
[1734556710784,20.0,208.53,208.44,53.28500806]
[1734556710985,20.0,208.53,208.44,10.042]
[1734556712298,20.0,208.53,208.44,53.28500806]
[1734556712706,11.989,208.53,208.44,10.042]
[1734556712880,20.0,208.5,208.44,10.042]
[1734556713300,20.0,208.5,208.44,53.28500806]
[1734556714595,20.0,208.5,208.44,10.042]
[1734556714796,31.9904,208.5,208.36,52.68150806]
[1734556714984,31.9904,208.5,208.36,9.4385]
[1734556715386,31.9904,208.5,208.36,52.68150806]
[1734556715601,31.9904,208.5,208.37,43.24300806]
[1734556715801,31.9904,208.5,208.38,43.24300806]
[1734556716007,31.9904,208.5,208.38,26.5347194]
[1734556716190,31.9885,208.54,208.42,26.5347194]
[1734556716384,31.9885,208.54,208.43,26.5347194]
[1734556716781,11.9863,208.58,208.49,26.5347194]
[1734556717296,11.9863,208.58,208.5,26.5347194]
[1734556717489,11.984,208.62,208.51,26.5347194]
[1734556718281,11.984,208.62,208.5,26.5347194]
[1734556718512,11.984,208.62,208.49,36.0278194]
[1734556718691,11.9858,208.58,208.47,6.1081]
[1734556718895,20.0,208.55,208.48,26.5347194]
[1734556719098,11.9841,208.61,208.51,26.5347194]
[1734556719988,11.9841,208.61,208.51,43.06586853]
[1734556720187,0.602617,208.66,208.53,43.06586853]
[1734556720495,0.602617,208.66,208.52,43.06586853]
[1734556720808,2.92899997,208.65,208.52,43.06586853]
[1734556721009,2.92899997,208.65,208.47,49.17396853]
[1734556721196,2.92899997,208.65,208.46,43.06586853]
[1734556721400,2.92899997,208.65,208.45,43.06586853]
[1734556721601,20.0,208.64,208.45,43.06586853]
[1734556722106,20.0,208.6,208.43,9.4217]
[1734556722407,20.0,208.56,208.43,9.4217]
[1734556722618,20.0,208.56,208.4,43.06586853]
[1734556723111,20.0,208.56,208.47,43.06586853]
[1734556723499,20.0,208.56,208.48,43.06586853]
[1734556723810,20.0,208.56,208.41,0.71955102]
[1734556723811,20.0,208.56,208.49,43.06586853]
[1734556724012,11.9834,208.63,208.5,43.06586853]
[1734556724199,11.9834,208.63,208.51,43.06586853]
[1734556724711,11.9834,208.63,208.53,43.06586853]
[1734556724896,11.9834,208.63,208.54,43.06586853]
[1734556725102,11.9834,208.63,208.53,43.06586853]
[1734556725811,11.9834,208.63,208.51,43.06586853]
[1734556726017,11.9834,208.63,208.52,43.06586853]
[1734556726223,11.9834,208.63,208.53,43.06586853]
[1734556726430,11.9834,208.63,208.54,43.06586853]
[1734556726722,11.9834,208.63,208.55,43.06586853]
[1734556726892,20.0,208.64,208.55,43.06586853]
[1734556727090,20.0,208.64,208.51,0.71921221]
[1734556727091,0.602617,208.66,208.57,43.06586853]
[1734556727423,0.602617,208.66,208.51,0.71921221]
[1734556727424,0.602617,208.66,208.6,43.06586853]
[1734556727584,0.602617,208.66,208.62,43.06586853]
[1734556727790,0.602617,208.66,208.65,43.06586853]
[1734556728602,0.602617,208.66,208.61,0.71871608]
[1734556728603,0.602617,208.66,208.55,20.0]
[1734556728806,0.602617,208.66,208.6,43.06586853]
[1734556729193,0.602617,208.66,208.61,43.06586853]
[1734556729423,0.602617,208.66,208.58,43.06586853]
[1734556729635,0.602617,208.66,208.54,43.06586853]
[1734556729923,0.602617,208.66,208.53,43.06586853]
[1734556730090,11.9817,208.65,208.51,43.06586853]
[1734556730291,20.0,208.62,208.5,10.1225]
[1734556730709,20.0,208.63,208.49,43.06586853]
[1734556731016,20.0,208.62,208.48,43.06586853]
[1734556731715,20.0,208.62,208.47,43.06586853]
[1734556731921,11.984,208.61,208.47,43.06586853]
[1734556732122,20.0,208.58,208.44,9.9684]
[1734556732320,20.0,208.58,208.42,43.06586853]
[1734556732519,20.0,208.58,208.41,43.06586853]
[1734556732698,20.0,208.58,208.37,52.52436853]
[1734556733039,4.21095145,208.57,208.35,2.91188353]
[1734556733191,20.0,208.54,208.35,2.91188353]
[1734556733514,20.0,208.49,208.35,2.91188353]
[1734556733694,29.65922384,208.49,208.26,43.06586853]
[1734556734018,40.18555145,208.48,208.24,43.06586853]
[1734556734201,45.63382384,208.48,208.25,43.06586853]
[1734556734408,45.63382384,208.48,208.3,43.06586853]
[1734556734608,40.18555145,208.48,208.3,43.06586853]
[1734556734811,35.9746,208.48,208.3,43.06586853]
[1734556735337,11.9915,208.48,208.34,43.06586853]
[1734556735503,20.0,208.45,208.35,43.06586853]
[1734556736389,2.89374903,208.49,208.37,43.06586853]
[1734556736595,2.89374903,208.49,208.38,43.06586853]
[1734556736818,2.89374903,208.49,208.35,43.06586853]
[1734556737035,14.88514903,208.49,208.33,43.06586853]
[1734556737895,20.0,208.46,208.33,43.06586853]
[1734556738110,20.0,208.46,208.34,43.06586853]
[1734556738703,20.0,208.46,208.35,43.06586853]
[1734556739123,31.993,208.46,208.32,43.06586853]
[1734556739527,31.993,208.46,208.3,43.06586853]
[1734556739715,31.993,208.46,208.31,43.06586853]
[1734556740027,31.993,208.46,208.3,43.06586853]
[1734556740208,31.993,208.46,208.34,43.06586853]
[1734556741027,31.993,208.46,208.33,43.06586853]
[1734556741324,31.993,208.46,208.31,43.06586853]
[1734556741512,31.993,208.46,208.34,43.06586853]
[1734556741714,31.993,208.46,208.35,43.06586853]
[1734556741929,34.41,208.42,208.16,6.3248]
[1734556742106,20.0,208.36,208.18,43.06586853]
[1734556742300,20.0,208.36,208.16,49.39066853]
[1734556742648,14.41,208.28,208.16,0.87844515]
[1734556742801,20.0,208.25,208.05,7.44955353]
[1734556743004,20.0,208.25,208.08,43.06586853]
[1734556743197,20.0,208.24,208.06,0.87886735]
[1734556743503,20.0,208.18,208.09,43.06586853]
[1734556743698,20.0,208.22,208.11,43.06586853]
[1734556744016,37.44955353,208.37,208.21,43.06586853]
[1734556744017,11.9984,208.36,208.21,43.06586853]
[1734556744207,7.44955353,208.37,208.25,43.06586853]
[1734556744401,7.44955353,208.37,208.28,43.06586853]
[1734556744605,7.44955353,208.37,208.29,43.06586853]
[1734556745028,11.9915,208.48,208.33,43.06586853]
[1734556745227,11.9915,208.48,208.34,43.06586853]
[1734556745535,31.182341,208.54,208.36,43.06586853]
[1734556745728,0.87455887,208.53,208.36,43.06586853]
[1734556746050,0.87455887,208.53,208.39,43.06586853]
[1734556746215,0.87455887,208.53,208.37,43.06586853]
[1734556746409,0.87455887,208.53,208.41,43.06586853]
[1734556746643,0.87455887,208.53,208.43,43.06586853]
[1734556746939,0.87455887,208.53,208.41,43.06586853]
[1734556747124,11.9858,208.58,208.35,20.0]
[1734556747125,11.9879,208.55,208.4,43.06586853]
[1734556747308,11.9879,208.55,208.42,43.06586853]
[1734556747509,11.9879,208.55,208.41,43.06586853]
[1734556747710,1.99648936,208.57,208.44,43.06586853]
[1734556747930,11.9853,208.59,208.44,43.06586853]
[1734556748432,14.41,208.62,208.49,43.06586853]
[1734556748618,2.01582373,208.61,208.49,43.06586853]
[1734556748938,2.01582373,208.61,208.5,43.06586853]
[1734556749115,11.9829,208.64,208.53,43.06586853]
[1734556749316,12.85745887,208.64,208.52,43.06586853]
[1734556749531,12.85745887,208.64,208.51,43.06586853]
[1734556749838,12.85745887,208.64,208.49,43.06586853]
[1734556750042,12.85745887,208.64,208.5,43.06586853]
[1734556750242,12.85745887,208.64,208.45,43.06586853]
[1734556750447,14.88699433,208.64,208.44,43.06586853]
[1734556750742,12.85745887,208.64,208.53,43.06586853]
[1734556750944,0.87455887,208.64,208.54,43.06586853]
[1734556751245,0.87455887,208.64,208.5,43.06586853]
[1734556751246,12.85695887,208.64,208.5,43.06586853]
[1734556751457,12.85695887,208.64,208.52,43.06586853]
[1734556751629,0.87455887,208.64,208.56,43.06586853]
[1734556751816,0.87455887,208.64,208.53,0.71914824]
[1734556751817,0.87455887,208.64,208.57,43.06586853]
[1734556752217,0.87455887,208.64,208.58,43.06586853]
[1734556752639,0.87455887,208.64,208.56,43.06586853]
[1734556752942,0.87455887,208.64,208.57,43.06586853]
[1734556754041,23.776884,208.63,208.57,43.06586853]
[1734556754826,0.87455887,208.64,208.6,43.06586853]
[1734556755028,0.87455887,208.64,208.61,43.06586853]
[1734556755552,0.87455887,208.64,208.62,43.06586853]
[1734556755749,0.87455887,208.64,208.6,43.06586853]
[1734556755950,0.87455887,208.64,208.58,43.06586853]
[1734556756144,0.87455887,208.64,208.52,43.06586853]
[1734556756641,23.776884,208.63,208.53,43.06586853]
[1734556756958,23.776884,208.59,208.5,52.35756853]
[1734556757729,23.776884,208.59,208.51,43.06586853]
[1734556757937,23.776884,208.59,208.5,43.06586853]
[1734556758258,23.776884,208.55,208.44,43.06586853]
[1734556758455,23.776884,208.51,208.4,43.06586853]
[1734556758754,20.0,208.48,208.37,43.06586853]
[1734556758956,23.776884,208.43,208.33,10.0109]
[1734556759333,23.776884,208.43,208.36,43.06586853]
[1734556759531,23.776884,208.43,208.33,53.07676853]
[1734556760155,23.776884,208.43,208.34,43.06586853]
[1734556760363,23.776884,208.43,208.36,43.06586853]
[1734556760569,23.776884,208.43,208.37,43.06586853]
[1734556760726,20.0,208.48,208.39,43.06586853]
[1734556760928,23.776884,208.47,208.39,43.06586853]
[1734556761133,23.776884,208.47,208.37,43.06586853]
[1734556761444,23.776884,208.47,208.41,43.06586853]
[1734556761648,23.776884,208.47,208.39,43.06586853]
[1734556761837,23.776884,208.47,208.4,43.06586853]
[1734556762163,23.776884,208.47,208.41,43.06586853]
[1734556762348,23.776884,208.47,208.42,43.06586853]
[1734556762767,11.9876,208.55,208.44,43.06586853]
[1734556762966,23.776884,208.54,208.43,43.06586853]
[1734556763468,11.9876,208.55,208.44,43.06586853]
[1734556763637,11.9876,208.55,208.43,43.06586853]
[1734556763832,11.9876,208.55,208.44,43.06586853]
[1734556764256,11.9876,208.55,208.4,43.06586853]
[1734556764647,23.776884,208.54,208.41,43.06586853]
[1734556765146,23.776884,208.54,208.37,0.71943969]
[1734556765147,20.0,208.51,208.4,43.06586853]
[1734556765349,23.776884,208.5,208.42,43.06586853]
[1734556765665,23.776884,208.5,208.44,43.06586853]
[1734556765867,11.9876,208.55,208.46,43.06586853]
[1734556766069,35.9452,208.65,208.47,43.06586853]
[1734556766365,35.9452,208.65,208.49,43.06586853]
[1734556766545,35.9452,208.65,208.46,43.06586853]
[1734556766752,35.9452,208.65,208.41,0.71934726]
[1734556766753,35.9452,208.65,208.45,43.06586853]
[1734556767147,35.9452,208.65,208.43,43.06586853]
[1734556767349,20.0,208.62,208.41,43.06586853]
[1734556767552,43.776884,208.61,208.42,43.06586853]
[1734556767851,20.0,208.57,208.43,43.06586853]
[1734556768041,23.776884,208.55,208.47,43.06586853]
[1734556768241,23.776884,208.55,208.46,43.06586853]
[1734556768680,23.776884,208.55,208.47,43.06586853]
[1734556769178,20.0,208.57,208.47,43.06586853]
[1734556769476,11.9846,208.6,208.51,43.06586853]
[1734556769663,11.9846,208.6,208.52,43.06586853]
[1734556769860,11.9846,208.6,208.4,43.06586853]
[1734556770050,35.9539,208.6,208.43,43.06586853]
[1734556770375,35.9539,208.6,208.4,43.06586853]
[1734556770552,35.9539,208.6,208.41,43.06586853]
[1734556770756,23.776884,208.59,208.37,43.06586853]
[1734556770949,20.0,208.48,208.33,53.07676853]
[1734556771173,20.0,208.44,208.29,43.06586853]
[1734556771374,23.776884,208.39,208.28,43.06586853]
[1734556772177,20.0,208.36,208.26,52.70606853]
[1734556772392,20.0,208.36,208.22,43.06586853]
[1734556772696,20.0,208.36,208.18,9.6046]
[1734556772980,20.0,208.36,208.19,43.06586853]
[1734556773198,20.0,208.32,208.23,43.06586853]
[1734556773655,11.999,208.35,208.25,43.06586853]
[1734556774281,11.999,208.35,208.24,43.06586853]
[1734556774458,11.999,208.35,208.23,43.06586853]
[1734556774658,11.999,208.35,208.25,43.06586853]
[1734556775552,25.79132218,208.39,208.27,43.06586853]
[1734556775757,25.79132218,208.39,208.24,43.06586853]
[1734556775758,20.0,208.36,208.24,43.06586853]
[1734556775967,20.0,208.36,208.26,43.06586853]
[1734556776173,20.0,208.36,208.22,43.06586853]
[1734556777291,20.0,208.36,208.18,9.6046]
[1734556777292,20.0,208.32,208.2,43.06586853]
[1734556777790,20.0,208.32,208.18,52.67046853]
[1734556778289,20.0,208.32,208.2,43.06586853]
[1734556778648,12.0013,208.31,208.19,43.06586853]
[1734556778874,20.0,208.28,208.18,52.67046853]
[1734556779382,20.0,208.28,208.15,43.06586853]
[1734556779768,20.0,208.28,208.14,43.06586853]
[1734556779970,20.0,208.28,208.16,43.06586853]
[1734556780281,20.0,208.28,208.17,43.06586853]
[1734556780480,12.0032,208.28,208.17,43.06586853]
[1734556780653,20.0,208.25,208.17,43.06586853]
[1734556781057,20.0,208.29,208.2,43.06586853]
[1734556781262,20.0,208.29,208.22,43.06586853]
[1734556781463,20.0,208.29,208.2,43.06586853]
[1734556781869,20.0,208.29,208.18,43.06586853]
[1734556782096,20.0,208.27,208.15,43.06586853]
[1734556782575,20.0,208.27,208.19,43.06586853]
[1734556782982,32.0041,208.27,208.16,43.06586853]
[1734556783170,32.0041,208.27,208.14,43.06586853]
[1734556783702,32.0041,208.27,208.16,43.06586853]
[1734556783876,32.0041,208.27,208.14,43.06586853]
[1734556784069,32.0041,208.27,208.15,43.06586853]
[1734556784288,32.0041,208.27,208.13,43.66848553]
[1734556784484,56.0113,208.27,208.13,0.602617]
[1734556785198,80.0185,208.27,208.13,0.602617]
[1734556785504,89.55,208.27,208.13,0.602617]
[1734556785683,89.55,208.27,208.13,1.7e-05]
[1734556785684,25.8424,208.24,208.13,1.7e-05]
[1734556786413,20.0,208.2,208.13,1.7e-05]
[1734556787114,2.85713115,208.18,208.13,1.7e-05]
[1734556787616,20.0,208.2,208.13,1.7e-05]
[1734556787821,22.00457094,208.2,208.13,1.7e-05]
[1734556788199,36.0178,208.23,208.13,43.06588553]
[1734556788514,2.95061837,208.24,208.17,43.06586853]
[1734556788811,12.0041,208.27,208.18,43.06586853]
[1734556789010,14.89297063,208.27,208.16,43.06586853]
[1734556789212,38.90017063,208.27,208.15,43.06586853]
[1734556789417,14.89297063,208.27,208.18,43.06586853]
[1734556789618,14.89297063,208.27,208.17,43.06586853]
[1734556789815,14.89297063,208.27,208.18,43.06586853]
[1734556790694,14.89297063,208.27,208.14,9.5819]
[1734556790695,12.0059,208.23,208.16,43.06586853]
[1734556790914,12.0059,208.23,208.15,43.06586853]
[1734556791727,20.0,208.2,208.13,1.7e-05]
[1734556792697,23.776884,208.19,208.13,1.7e-05]
[1734556794798,12.0088,208.18,208.13,1.7e-05]
[1734556794997,43.776884,208.15,208.13,1.7e-05]
[1734556795198,20.0,208.14,208.0,9.5786]
[1734556795706,20.0,208.12,208.0,9.5786]
[1734556795908,20.0,208.12,208.0,52.64446853]
[1734556796094,12.0128,208.11,208.0,9.5786]
[1734556796295,20.0,208.08,208.02,43.06586853]
[1734556796490,20.0,208.08,208.01,43.06586853]
[1734556797111,20.0,208.08,208.02,43.06586853]
[1734556797301,20.0,208.08,207.94,45.03074833]
[1734556797302,20.0,208.04,207.94,45.03074833]
[1734556797629,12.0146,208.08,207.9,43.06586853]
[1734556797630,23.776884,207.95,207.9,43.06586853]
[1734556797825,23.776884,207.95,207.89,43.06586853]
[1734556798034,23.776884,207.95,207.88,9.5786]
[1734556798320,23.776884,207.95,207.9,43.06586853]
[1734556798530,23.776884,207.95,207.91,43.06586853]
[1734556798831,23.776884,207.95,207.9,43.06586853]
[1734556799334,23.776884,207.95,207.88,52.64446853]
[1734556799630,23.776884,207.95,207.89,43.06586853]
[1734556800032,23.776884,207.95,207.9,43.06586853]
[1734556800235,23.776884,207.95,207.93,43.06586853]
[1734556800400,23.776884,207.95,207.92,43.66848553]
[1734556800820,23.776884,207.95,207.92,0.602617]
[1734556801209,23.776884,207.96,207.92,0.602617]
[1734556801930,43.776884,207.93,207.92,0.602617]
[1734556802719,20.0,207.98,207.92,0.602617]
[1734556803232,18.56742024,208.11,207.95,43.06586853]
[1734556803529,24.0175,208.19,208.05,43.06586853]
[1734556803530,2.00373535,208.09,208.05,43.06586853]
[1734556803716,12.0094,208.17,208.05,43.06586853]
[1734556804036,6.2822,208.19,208.0,43.06586853]
[1734556804037,14.95577106,208.18,208.07,43.06586853]
[1734556804333,14.95577106,208.18,208.05,43.06586853]
[1734556804536,38.97337106,208.18,208.0,43.06586853]
[1734556804737,62.99097106,208.18,207.95,6.2343]
[1734556805028,14.95577106,208.18,208.06,43.06586853]
[1734556805233,14.95577106,208.18,208.03,43.06586853]
[1734556805412,14.95577106,208.18,208.02,43.06586853]
[1734556805727,38.97337106,208.18,208.01,43.06586853]
[1734556805928,38.97337106,208.18,208.03,43.06586853]